bitfinex/quotes_ETHUSD_20250622
["timestamp","ask_amount","ask_price","bid_price","bid_amount"]
[1750589811885,9.58242197,2263.3,2263.2,4.41852244]
[1750589812790,9.58247737,2263.3,2263.2,4.41852244]
[1750589813289,9.58247648,2263.3,2263.2,4.41852244]
[1750589813491,9.58247655,2263.3,2263.2,4.41852244]
[1750589813690,9.169,2263.3,2263.2,4.41852244]
[1750589813898,9.58247656,2263.3,2263.2,4.41852244]
[1750589814196,9.58247652,2263.3,2263.2,4.41852244]
[1750589814384,9.58255945,2263.3,2263.2,4.41852244]
[1750589815298,9.5825573,2263.3,2263.2,4.41852244]
[1750589815686,9.58257054,2263.3,2263.2,4.41852244]
[1750589816193,9.58257064,2263.3,2263.2,4.41852244]
[1750589816894,9.58265303,2263.3,2263.1,4.41862383]
[1750589817092,0.41365303,2263.2,2263.1,4.41862383]
[1750589817395,3.4292629,2263.5,2263.2,4.41849879]
[1750589817597,9.58180556,2263.4,2263.1,4.41861606]
[1750589817901,9.58180556,2263.4,2262.7,4.96948457]
[1750589817902,0.46903244,2263.3,2262.3,4.42011883]
[1750589818066,7.67982646,2263.2,2262.9,4.41892054]
[1750589818268,7.67982646,2263.2,2262.8,4.41922889]
[1750589818269,0.41382646,2263.1,2263.0,4.41891294]
[1750589818604,7.266,2263.2,2263.1,4.41871768]
[1750589818759,7.6799653,2263.2,2263.1,4.41871768]
[1750589819162,7.67995681,2263.2,2263.1,4.41871768]
[1750589819562,7.68019973,2263.2,2263.1,4.41871768]
[1750589819758,7.68019972,2263.2,2263.1,4.41871768]
[1750589819963,7.68019972,2263.2,2263.0,4.41880359]
[1750589820163,0.41419972,2263.1,2263.0,4.41880359]
[1750589821301,7.266,2263.2,2262.9,4.41891933]
[1750589821606,0.41422582,2263.1,2262.6,4.41969415]
[1750589821778,7.266,2263.2,2262.6,4.41969415]
[1750589821985,0.41422885,2263.1,2262.9,4.41891565]
[1750589822306,7.266,2263.2,2263.0,4.41889338]
[1750589822467,7.67826275,2263.1,2263.0,4.41891294]
[1750589824004,7.67825949,2263.1,2263.0,4.41891294]
[1750589826507,7.67828164,2263.1,2263.0,4.41891294]
[1750589826708,7.264,2263.1,2263.0,4.41891294]
[1750589827006,7.67829737,2263.1,2263.0,4.41891294]
[1750589827223,7.67829784,2263.1,2263.0,4.41891294]
[1750589827503,7.264,2263.1,2263.0,4.41891294]
[1750589827705,7.67830612,2263.1,2263.0,4.41891294]
[1750589828005,7.67830324,2263.1,2263.0,4.41891294]
[1750589828591,7.264,2263.1,2263.0,4.41891294]
[1750589832112,0.8241,2263.0,2262.8,4.41910935]
[1750589832308,1.897,2262.9,2262.4,0.55]
[1750589832614,0.8241,2263.2,2262.9,4.41910822]
[1750589832815,9.159,2263.1,2262.9,4.41910822]
[1750589833114,9.159,2263.1,2263.0,4.4187876]
[1750589834311,10.15731,2263.1,2262.9,4.41901579]
[1750589835382,10.15731,2263.1,2262.7,4.41934085]
[1750589835608,0.05523722,2263.0,2262.7,4.41949882]
[1750589836028,5.20929893,2262.9,2262.4,4.41998858]
[1750589836322,0.7901,2262.7,2262.4,4.42007726]
[1750589836533,2.76288451,2262.6,2262.0,0.55]
[1750589836735,7.261,2262.5,2262.4,4.42007733]
[1750589837097,7.261,2262.5,2262.2,4.42038171]
[1750589837098,7.261,2262.5,2262.3,4.42018783]
[1750589837643,7.261,2262.5,2262.3,4.42025091]
[1750589838121,7.31625187,2262.5,2262.3,4.42025091]
[1750589838293,7.31625187,2262.5,2262.2,4.42031032]
[1750589838294,7.31625187,2262.5,2262.4,4.42008486]
[1750589838995,7.31625187,2262.5,2262.3,4.42021136]
[1750589839403,7.31625187,2262.5,2262.4,4.42008486]
[1750589840126,9.10668706,2262.5,2262.3,4.42012622]
[1750589840326,9.05143519,2262.5,2262.4,4.42008486]
[1750589840690,9.05143519,2262.5,2262.2,4.42039723]
[1750589840691,0.7816,2262.7,2262.6,4.41965401]
[1750589841026,9.159,2262.7,2262.6,4.41969415]
[1750589841528,0.7816,2263.0,2262.8,4.41930162]
[1750589841712,10.0,2262.8,2262.7,4.41943712]
[1750589841914,10.41286464,2262.8,2262.6,4.4195978]
[1750589842228,0.41286464,2262.7,2262.5,4.4198607]
[1750589842594,0.41286464,2262.7,2262.6,4.41969415]
[1750589842794,2.42529358,2262.7,2262.5,4.41979086]
[1750589842995,7.261,2262.6,2262.5,4.41979086]
[1750589843195,7.67387083,2262.6,2262.5,4.41979086]
[1750589843606,7.261,2262.6,2262.4,4.41991704]
[1750589843938,7.261,2262.6,2262.5,4.4198895]
[1750589847021,0.7816,2262.7,2262.6,4.41969415]
[1750589847224,10.35246329,2262.7,2262.5,4.41980347]
[1750589847447,9.9396,2262.7,2262.5,4.41980347]
[1750589848422,9.9396,2262.7,2262.6,4.41969415]
[1750589848742,10.35246676,2262.7,2262.6,4.41969415]
[1750589849546,10.35247183,2262.7,2262.6,4.41969415]
[1750589849847,9.57087183,2262.7,2262.6,4.41969415]
[1750589851750,0.99831,2263.1,2263.0,4.41891294]
[1750589851751,0.756,2263.1,2263.0,4.41891294]
[1750589851936,10.32583795,2263.1,2263.0,4.41891294]
[1750589852264,21.36393544,2263.1,2263.0,4.41891294]
[1750589852426,21.36392594,2263.1,2263.0,4.41891294]
[1750589852828,0.41281861,2263.1,2263.0,4.41891294]
[1750589853052,9.56981861,2263.1,2263.0,4.41891294]
[1750589853550,9.56984991,2263.1,2263.0,4.41891294]
[1750589853723,9.56985017,2263.1,2263.0,4.41891294]
[1750589853918,9.56984989,2263.1,2263.0,4.41891294]
[1750589854934,9.56984989,2263.1,2262.9,4.4190293]
[1750589855256,0.41287867,2263.0,2262.9,4.4190293]
[1750589855454,9.157,2263.1,2262.9,4.4190293]
[1750589857155,9.157,2263.1,2263.0,4.41891294]
[1750589857354,9.56995214,2263.1,2263.0,4.41891294]
[1750589857738,9.56395214,2263.1,2263.0,4.41891294]
[1750589858058,9.56394574,2263.1,2263.0,4.41891294]
[1750589858356,9.56394565,2263.1,2263.0,4.41891294]
[1750589859360,9.56405421,2263.1,2263.0,4.41891294]
[1750589859963,9.56405429,2263.1,2263.0,4.41891294]
[1750589860261,2.30605429,2263.1,2263.0,4.41891294]
[1750589860429,9.56305429,2263.1,2263.0,4.41891294]
[1750589860862,9.15,2263.1,2263.0,4.41891294]
[1750589861038,9.56312113,2263.1,2263.0,4.41891294]
[1750589861366,9.5632163,2263.1,2263.0,4.41891294]
[1750589862355,9.56327654,2263.1,2263.0,4.41891294]
[1750589862748,9.56327952,2263.1,2263.0,4.41891294]
[1750589864359,9.56338713,2263.1,2263.0,4.41891294]
[1750589864560,9.56338715,2263.1,2263.0,4.41891294]
[1750589864729,9.56338663,2263.1,2263.0,4.41891294]
[1750589864929,9.56338702,2263.1,2263.0,4.41891294]
[1750589866862,9.56338813,2263.1,2263.0,4.41891294]
[1750589867562,9.5633606,2263.1,2263.0,4.41891294]
[1750589867764,9.56336049,2263.1,2263.0,4.41891294]
[1750589868063,1.893,2263.1,2263.0,4.96891294]
[1750589868229,9.148,2263.1,2263.0,4.41891294]
[1750589868562,9.147,2263.1,2263.0,4.96891294]
[1750589869335,1.893,2263.1,2263.0,4.96891294]
[1750589869542,9.147,2263.1,2263.0,4.96891294]
[1750589870138,9.147,2263.1,2263.0,4.41891294]
[1750589872963,10.14325,2263.1,2262.8,4.4191485]
[1750589874573,0.41317769,2263.0,2262.8,4.4191485]
[1750589874769,10.14325,2263.1,2262.8,4.4191485]
[1750589874961,1.22868315,2263.0,2262.8,4.4191485]
[1750589875163,0.8155,2263.0,2262.8,4.4191485]
[1750589876877,9.147,2263.1,2262.8,4.41930351]
[1750589877174,0.41334163,2263.0,2262.9,4.41897887]
[1750589877494,0.41332811,2263.0,2262.9,4.41897887]
[1750589878277,0.41338366,2263.0,2262.9,4.41897887]
[1750589878646,9.147,2263.1,2262.9,4.41897887]
[1750589878877,0.41355327,2263.0,2262.9,4.41897887]
[1750589879687,0.41359982,2263.0,2262.9,4.41897887]
[1750589880783,0.41359982,2263.0,2262.8,4.4192094]
[1750589880995,0.41385409,2262.9,2262.8,4.4192094]
[1750589881348,10.14255,2263.1,2262.9,4.4189913]
[1750589881650,0.41385304,2263.0,2262.9,4.4189913]
[1750589882550,0.41388405,2263.0,2262.9,4.4189913]
[1750589882950,0.41388405,2263.0,2262.9,4.41910822]
[1750589883875,1.6056139,2263.0,2262.6,4.41968434]
[1750589884075,0.41388405,2262.9,2262.8,4.41921022]
[1750589884897,0.41395892,2262.9,2262.8,4.41921022]
[1750589885255,0.41395856,2262.9,2262.8,4.41921022]
[1750589885898,1.19172985,2263.0,2262.9,4.41910822]
[1750589886192,1.55042131,2263.0,2262.9,4.41910822]
[1750589886393,1.55041695,2263.0,2262.9,4.41910822]
[1750589887667,1.13649341,2263.0,2262.9,4.41910822]
[1750589887965,1.55041766,2263.0,2262.9,4.41910822]
[1750589888290,1.60565815,2263.0,2262.9,4.41910822]
[1750589888459,1.60565815,2263.0,2262.7,4.4194148]
[1750589888660,1.18662425,2262.9,2262.8,4.41930351]
[1750589889488,0.7727,2262.9,2262.8,4.41930351]
[1750589890194,9.9107,2262.9,2262.8,4.41930351]
[1750589893458,9.138,2262.9,2262.8,4.41930351]
[1750589896810,0.7766,2263.1,2263.0,4.41891294]
[1750589896981,10.99026,2263.1,2263.0,4.41891294]
[1750589898204,10.99026,2263.1,2262.9,4.41902154]
[1750589898712,10.99026,2263.1,2263.0,4.41891294]
[1750589899074,1.85426,2263.1,2263.0,4.41891294]
[1750589899274,10.99026,2263.1,2263.0,4.41891294]
[1750589900712,10.99026,2263.1,2262.9,4.41901551]
[1750589901004,1.099026,2263.0,2262.9,4.41901551]
[1750589903225,1.099026,2263.0,2262.8,4.41919946]
[1750589904131,1.15426433,2263.0,2262.9,4.41910822]
[1750589905121,1.099026,2263.0,2262.9,4.41910822]
[1750589905318,10.99026,2263.1,2262.9,4.41902096]
[1750589905517,0.05523999,2263.0,2262.9,4.41902096]
[1750589906132,0.05523999,2263.0,2262.7,4.41931542]
[1750589906337,0.05523999,2263.0,2262.8,4.41921417]
[1750589907936,0.8027,2262.8,2262.4,4.42006925]
[1750589908127,7.29925078,2262.7,2261.7,4.42145288]
[1750589908324,1.889,2262.6,2262.3,4.42014394]
[1750589908525,1.889,2262.6,2262.4,4.42004372]
[1750589908825,0.41389666,2262.5,2262.4,4.42004372]
[1750589909339,0.41437411,2262.5,2262.3,4.42017469]
[1750589909551,7.65837411,2262.4,2262.3,4.42017469]
[1750589910043,7.65824184,2262.4,2262.3,4.42017469]
[1750589911928,7.65813864,2262.4,2262.3,4.42017469]
[1750589912437,7.65813808,2262.4,2262.3,4.42017469]
[1750589913061,0.41413808,2262.4,2262.3,4.42017469]
[1750589913373,0.41413808,2262.4,2262.2,4.4203984]
[1750589913374,0.7613,2263.0,2262.7,4.41940834]
[1750589913584,10.0,2262.8,2262.7,4.41940834]
[1750589913744,10.41402558,2262.8,2262.7,4.41940834]
[1750589913942,10.41402558,2262.8,2262.6,4.41958795]
[1750589914276,1.17532639,2262.7,2262.4,4.41998569]
[1750589914446,0.41404435,2262.6,2262.5,4.4198895]
[1750589914629,1.11753444,2262.6,2262.5,4.4198895]
[1750589914833,1.53157634,2262.6,2262.5,4.4198895]
[1750589915366,1.53152376,2262.6,2262.5,4.4198895]
[1750589915961,1.11753444,2262.6,2262.5,4.4198895]
[1750589916133,1.53152119,2262.6,2262.5,4.4198895]
[1750589916333,1.53152502,2262.6,2262.5,4.4198895]
[1750589917246,1.53151792,2262.6,2262.5,4.4198895]
[1750589917653,8.77446383,2262.6,2262.5,4.4198895]
[1750589918567,7.65691552,2262.6,2262.5,4.4198895]
[1750589918957,7.65690998,2262.6,2262.5,4.4198895]
[1750589919256,7.243,2262.6,2262.5,4.4198895]
[1750589919449,7.65689749,2262.6,2262.5,4.4198895]
[1750589919674,0.7783,2262.9,2262.7,4.41937332]
[1750589919969,9.59512455,2262.8,2262.7,4.41937332]
[1750589920175,0.41387973,2262.8,2262.7,4.41937332]
[1750589920361,9.53987973,2262.8,2262.7,4.41937332]
[1750589920678,9.53985163,2262.8,2262.7,4.41937332]
[1750589923342,9.4898369,2262.8,2262.7,4.41937332]
[1750589924177,9.48984491,2262.8,2262.7,4.41937332]
[1750589924942,0.791,2263.1,2262.9,4.4190164]
[1750589925171,19.59307382,2263.0,2262.9,4.4190164]
[1750589925345,19.53783382,2263.0,2262.9,4.4190164]
[1750589925543,10.41383382,2263.0,2262.9,4.4190164]
[1750589925743,19.124,2263.0,2262.9,4.4190164]
[1750589925944,19.53784514,2263.0,2262.9,4.4190164]
[1750589926145,19.5378498,2263.0,2262.9,4.4190164]
[1750589926350,9.5378498,2263.0,2262.8,4.41919782]
[1750589926551,0.46909101,2262.9,2262.8,4.41919782]
[1750589926985,9.59309101,2262.9,2262.8,4.41919782]
[1750589927181,9.53785285,2262.9,2262.0,4.42067582]
[1750589927393,9.53785285,2262.9,2262.7,4.41935417]
[1750589927394,0.41385285,2262.8,2262.7,4.41935417]
[1750589928276,0.41388901,2262.8,2262.7,4.41935417]
[1750589928476,0.46913218,2262.8,2262.7,4.41935417]
[1750589928877,0.05524317,2262.8,2262.7,4.41935417]
[1750589929059,0.46914199,2262.8,2262.7,4.41935417]
[1750589929919,0.05524317,2262.8,2262.7,4.41935417]
[1750589930053,0.46917509,2262.8,2262.7,4.41935417]
[1750589930786,0.41393192,2262.8,2262.7,4.41935417]
[1750589931571,19.124,2262.9,2262.8,4.41930351]
[1750589931773,19.53797214,2262.9,2262.8,4.41930351]
[1750589931994,19.53797236,2262.9,2262.8,4.41930351]
[1750589932156,10.41397236,2262.9,2262.8,4.41930351]
[1750589932359,19.53597236,2262.9,2262.8,4.41930351]
[1750589932668,20.49860882,2262.9,2262.8,4.41930351]
[1750589934199,20.49868781,2262.9,2262.7,4.41935204]
[1750589934496,0.41405135,2262.8,2262.7,4.41935204]
[1750589934686,0.41408452,2262.8,2262.7,4.41935204]
[1750589935378,0.41416219,2262.8,2262.7,4.41935204]
[1750589936602,0.41423529,2262.8,2262.7,4.41935204]
[1750589937366,19.122,2262.9,2262.7,4.41935204]
[1750589937602,0.41427131,2262.8,2262.7,4.41935204]
[1750589940315,19.122,2262.9,2262.7,4.41935204]
[1750589940493,0.41427234,2262.8,2262.7,4.41935204]
[1750589941108,0.41430135,2262.8,2262.7,4.41935204]
[1750589941813,0.41430442,2262.8,2262.7,4.41935204]
[1750589942111,0.41430448,2262.8,2262.7,4.41935204]
[1750589942299,0.41430625,2262.8,2262.7,4.41935204]
[1750589942701,19.122,2262.9,2262.8,4.41930351]
[1750589942900,19.53633339,2262.9,2262.8,4.41930351]
[1750589943400,19.53633041,2262.9,2262.8,4.41930351]
[1750589945778,19.53638465,2262.9,2262.8,4.41930351]
[1750589946306,19.122,2262.9,2262.8,4.41930351]
[1750589946512,10.41440671,2262.9,2262.8,4.41930351]
[1750589946688,9.53140671,2262.9,2262.8,4.41930351]
[1750589948115,9.117,2262.9,2262.8,4.41930351]
[1750589948479,9.53148055,2262.9,2262.8,4.41930351]
[1750589949025,9.117,2262.9,2262.8,4.41930351]
[1750589949507,9.5316694,2262.9,2262.8,4.41930351]
[1750589950191,9.117,2262.9,2262.7,4.41932302]
[1750589950402,10.10589,2262.9,2262.8,4.41930351]
[1750589950602,10.52057605,2262.9,2262.8,4.41930351]
[1750589950802,10.5205769,2262.9,2262.7,4.41934821]
[1750589951124,0.41470148,2262.8,2262.7,4.41934821]
[1750589952117,9.117,2262.9,2262.8,4.41930351]
[1750589952325,9.53164245,2262.9,2262.8,4.41930351]
[1750589953901,9.53164156,2262.9,2262.8,4.41930351]
[1750589955325,9.117,2262.9,2262.8,4.41930351]
[1750589955544,9.53161746,2262.9,2262.7,4.41941368]
[1750589955734,0.41461746,2262.8,2262.7,4.41941368]
[1750589956814,9.117,2262.9,2262.8,4.41930351]
[1750589956996,9.53161912,2262.9,2262.8,4.41930351]
[1750589957506,9.117,2262.9,2262.8,4.41930351]
[1750589957829,9.53162367,2262.9,2262.8,4.41930351]
[1750589959527,9.117,2262.9,2262.8,4.41930351]
[1750589959826,9.53154394,2262.9,2262.8,4.41930351]
[1750589961830,9.52154394,2262.9,2262.8,4.41930351]
[1750589963294,2.29354394,2262.9,2262.8,4.41930351]
[1750589963513,9.52154394,2262.9,2262.8,4.41930351]
[1750589964954,9.52138812,2262.9,2262.8,4.41930351]
[1750589966647,0.41438812,2262.9,2262.8,4.41930351]
[1750589966853,9.6417,2263.4,2263.0,4.41891294]
[1750589966854,1.878,2263.1,2263.0,4.41891294]
[1750589967158,9.51924937,2263.1,2263.0,4.41891294]
[1750589968160,9.51923263,2263.1,2263.0,4.41891294]
[1750589968521,9.51923291,2263.1,2263.0,4.41891294]
[1750589969053,9.105,2263.1,2263.0,4.41891294]
[1750589969755,9.104,2263.1,2263.0,4.41891294]
[1750589969982,8.847,2263.4,2263.3,4.41832722]
[1750589970123,4.12564152,2263.8,2263.7,4.41754649]
[1750589970457,6.41733695,2263.8,2263.7,4.41754649]
[1750589970657,13.64232944,2263.8,2263.7,4.41754649]
[1750589970962,13.6416026,2263.8,2263.7,4.41754649]
[1750589971167,6.4166026,2263.8,2263.7,4.41754649]
[1750589971459,13.64155748,2263.8,2263.7,4.41754649]
[1750589971759,13.22864152,2263.8,2263.7,4.41754649]
[1750589973862,13.22864152,2263.8,2263.6,4.41763516]
[1750589974067,13.22864152,2263.8,2263.7,4.41754649]
[1750589975454,13.22664152,2263.8,2263.7,4.41754649]
[1750589975827,6.00364152,2263.8,2263.7,4.41754649]
[1750589976323,13.22564152,2263.8,2263.7,4.41754649]
[1750589977237,10.0,2263.7,2263.3,4.41822738]
[1750589977465,0.7814,2263.5,2263.2,4.41834413]
[1750589977670,7.222,2263.4,2263.1,4.41860734]
[1750589977886,1.878,2263.3,2262.9,4.41894783]
[1750589978098,1.878,2263.3,2262.1,11.64254479]
[1750589978099,7.222,2263.2,2263.0,4.4188236]
[1750589978368,0.7814,2263.1,2262.9,4.4189862]
[1750589978565,7.222,2263.0,2262.9,4.4189862]
[1750589979368,7.222,2263.0,2262.3,4.42010887]
[1750589979670,7.222,2263.0,2262.7,4.41936375]
[1750589979969,7.222,2263.0,2262.8,4.41929325]
[1750589981268,8.07757672,2263.0,2262.6,4.41958286]
[1750589981468,8.02234,2263.0,2262.5,4.41979115]
[1750589981775,0.05524098,2262.9,2262.6,4.4196693]
[1750589981952,1.873,2262.8,2262.5,4.41981617]
[1750589982152,7.221,2262.7,2262.6,4.41969415]
[1750589982768,7.221,2262.7,2262.5,4.41980329]
[1750589983294,7.27624263,2262.7,2262.3,4.42018533]
[1750589983662,7.27624263,2262.7,2262.4,4.42005236]
[1750589984189,0.7814,2262.6,2262.2,4.42036653]
[1750589984591,0.83665024,2262.6,2262.2,4.42036653]
[1750589984884,0.83665024,2262.6,2262.3,4.42018033]
[1750589986061,0.83665024,2262.6,2262.4,4.42007975]
[1750589988454,0.83665024,2262.6,2262.3,4.42019021]
[1750589988959,0.83665024,2262.6,2262.4,4.4200717]
[1750589991493,0.83665024,2262.6,2262.5,4.4198895]
[1750589991698,0.7814,2262.6,2262.5,4.4198895]
[1750589992913,9.8764,2262.6,2262.5,4.4198895]
[1750589993212,10.53203119,2262.6,2262.4,4.41998003]
[1750589993614,10.53203119,2262.6,2262.4,4.42006537]
[1750589994190,10.53203119,2262.6,2262.3,4.42019836]
[1750589994409,10.53203119,2262.6,2262.4,4.42007473]
[1750589996118,10.53203119,2262.6,2262.5,4.4198895]
[1750589996617,0.7724,2262.5,2262.2,4.42046092]
[1750589996786,0.05525634,2262.4,2262.2,4.42046092]
[1750589996986,7.22,2262.3,2262.2,4.42046092]
[1750590001929,7.22,2262.3,2262.0,4.42073854]
[1750590001930,8.0347,2262.3,2262.0,4.42073854]
[1750590002108,0.05526056,2262.2,2262.1,4.42063069]
[1750590002505,13.72106552,2262.9,2262.4,4.41993634]
[1750590002719,0.8147,2262.7,2262.5,4.41975868]
[1750590003024,0.46687996,2262.6,2262.3,4.42017773]
[1750590003232,0.05524939,2262.6,2262.4,4.41992592]
[1750590003398,0.05524939,2262.6,2262.5,4.4198895]
[1750590003720,1.46342107,2262.6,2262.4,4.4200295]
[1750590003923,1.05154433,2262.6,2262.4,4.4200295]
[1750590004105,1.05154433,2262.6,2261.8,4.42110843]
[1750590004301,1.05154433,2262.6,2262.3,4.42016803]
[1750590004302,0.8147,2262.5,2262.3,4.42016803]
[1750590004523,7.219,2262.4,2262.3,4.42016803]
[1750590005320,7.219,2262.4,2261.7,0.55]
[1750590005520,1.874,2262.3,2261.3,0.43693938]
[1750590005726,1.874,2262.3,2261.4,0.55]
[1750590006740,1.874,2262.3,2261.3,0.43693938]
[1750590006741,1.874,2262.3,2261.7,0.55]
[1750590008641,0.8147,2262.8,2261.7,10.55]
[1750590008854,12.28775555,2262.7,2261.7,10.55]
[1750590009148,7.63175555,2262.6,2261.7,10.55]
[1750590009449,0.41375555,2262.5,2261.7,10.55]
[1750590009647,7.218,2262.6,2261.7,10.55]
[1750590009949,1.23433733,2262.5,2261.7,10.55]
[1750590010114,0.41373733,2262.4,2261.7,10.55]
[1750590010445,0.8206,2262.5,2261.7,10.55]
[1750590010750,9.50176704,2262.4,2261.7,10.55]
[1750590010950,9.088,2262.4,2261.7,10.55]
[1750590011638,10.796,2262.7,2261.7,10.55]
[1750590011839,9.50209334,2262.6,2261.7,10.55]
[1750590012040,0.41409334,2262.5,2261.7,10.55]
[1750590012240,0.41409334,2262.4,2261.7,10.55]
[1750590012439,7.218,2262.4,2261.7,10.55]
[1750590013956,3.60455122,2262.8,2261.7,10.55]
[1750590014162,1.87,2262.6,2261.7,10.55]
[1750590014362,0.41429304,2262.5,2261.7,10.55]
[1750590014556,1.87,2262.6,2261.7,10.55]
[1750590014762,0.41430104,2262.5,2261.7,10.55]
[1750590015056,1.87,2262.6,2261.7,10.55]
[1750590015239,0.41430346,2262.5,2261.7,10.55]
[1750590015439,0.41430346,2262.4,2261.7,10.55]
[1750590015738,0.7527,2262.5,2261.7,10.0]
[1750590015930,0.46951618,2262.4,2261.7,10.0]
[1750590016128,0.41425784,2262.3,2261.7,10.0]
[1750590016462,0.41427814,2262.2,2261.7,10.0]
[1750590016658,9.087,2262.1,2261.7,10.0]
[1750590018765,0.98959464,2262.5,2261.8,0.55]
[1750590018766,0.7527,2262.5,2261.8,0.55]
[1750590019065,9.50025283,2262.4,2261.8,0.55]
[1750590019364,9.086,2262.4,2261.8,0.55]
[1750590020632,1.87,2262.4,2261.8,0.55]
[1750590021234,0.7527,2262.9,2261.8,0.55]
[1750590021436,9.50012704,2262.7,2261.8,0.55]
[1750590021647,0.41411519,2262.6,2261.8,0.55]
[1750590021864,3.60455122,2262.8,2261.8,0.55]
[1750590021865,9.086,2262.5,2261.8,0.55]
[1750590022069,1.87,2262.5,2261.8,0.55]
[1750590036798,3.60455122,2262.8,2261.8,0.55]
[1750590036986,3.60455122,2262.8,2261.8,0.94246864]
[1750590037189,3.60455122,2262.8,2262.0,10.55]
[1750590037380,3.60455122,2262.8,2262.2,0.55]
[1750590038099,0.826,2263.3,2262.2,0.55]
[1750590038100,1.87,2263.5,2262.2,0.94246864]
[1750590038400,1.87,2263.5,2262.4,0.55]
[1750590039099,8.848,2263.9,2262.6,0.55]
[1750590039401,1.87,2263.6,2262.6,2.42]
[1750590040400,0.05521732,2263.5,2262.1,1.867]
[1750590040698,0.05521732,2263.5,2261.6,6.73612688]
[1750590040699,0.8122,2263.4,2262.0,1.867]
[1750590040900,0.8122,2263.4,2262.1,0.55]
[1750590041200,0.8122,2263.4,2262.1,2.417]
[1750590041581,1.14839436,2263.4,2262.1,2.417]
[1750590041985,0.8122,2263.4,2262.1,2.417]
[1750590043406,0.8122,2263.4,2262.3,0.55]
[1750590044200,1.867,2263.3,2262.3,0.55]
[1750590044603,0.8122,2263.4,2262.3,0.55]
[1750590044909,1.867,2263.3,2262.3,0.55]
[1750590047510,1.867,2263.4,2262.3,0.55]
[1750590048576,1.867,2263.5,2262.3,0.94246864]
[1750590054690,1.867,2263.5,2262.3,0.39246864]
[1750590056532,1.867,2263.5,2262.4,0.55]
[1750590063121,1.866,2263.8,2262.4,11.5084207]
[1750590063295,1.866,2263.8,2262.6,0.55]
[1750590063502,1.866,2263.8,2262.8,0.55]
[1750590063727,1.866,2264.0,2262.8,0.55]
[1750590066735,1.866,2264.0,2263.0,0.55]
[1750590067101,1.866,2264.0,2263.0,0.76832971]
[1750590067312,1.866,2264.3,2263.0,0.76832971]
[1750590068046,1.866,2264.3,2263.0,0.55]
[1750590068336,1.866,2264.3,2263.2,0.55]
[1750590068538,2.12993,2264.3,2263.2,0.55]
[1750590068709,2.12993,2264.3,2263.3,0.55]
[1750590068916,2.12993,2264.3,2263.3,0.99650237]
[1750590069334,0.82850602,2264.2,2263.3,0.99650237]
[1750590069938,0.82850602,2264.2,2263.3,0.44650237]
[1750590070239,0.7733,2264.0,2263.2,0.55]
[1750590070404,2.6373,2264.0,2263.2,0.55]
[1750590071640,1.864,2264.0,2263.2,0.55]
[1750590072320,0.7995,2264.2,2263.2,0.55]
[1750590072521,0.05521339,2264.4,2263.2,0.55]
[1750590072522,1.864,2264.1,2263.2,0.55]
[1750590072726,1.864,2264.3,2263.2,0.55]
[1750590075040,0.7995,2264.2,2263.3,0.55]
[1750590075544,0.7995,2264.2,2263.1,0.55]
[1750590075748,0.7995,2264.2,2263.3,0.55]
[1750590076207,0.7995,2264.2,2263.1,0.55]
[1750590076414,0.05520816,2264.1,2263.1,0.55]
[1750590076832,0.05520816,2264.1,2262.7,0.55]
[1750590077033,0.85471233,2264.2,2262.9,0.55]
[1750590077244,0.85471233,2264.2,2263.1,0.55]
[1750590077440,1.09800623,2264.2,2263.1,0.55]
[1750590077641,1.09800623,2264.2,2263.2,0.55]
[1750590077842,1.864,2264.1,2263.2,0.55]
[1750590080341,0.8058,2264.0,2263.0,1.864]
[1750590080542,0.8058,2264.0,2263.1,0.55]
[1750590084151,0.87121476,2263.9,2262.6,0.39246864]
[1750590084337,0.87121476,2263.9,2262.1,0.43805109]
[1750590084540,0.816,2263.7,2262.1,0.36902993]
[1750590084730,1.864,2263.6,2262.2,0.55]
[1750590085623,1.864,2263.6,2262.1,10.82026378]
[1750590085823,0.8108,2263.5,2262.2,1.864]
[1750590086060,0.8108,2263.5,2262.3,0.55]
[1750590086560,0.8108,2263.5,2262.5,0.55]
[1750590086932,0.8108,2263.4,2262.5,0.55]
[1750590095556,0.8108,2263.4,2262.3,2.414]
[1750590095834,0.8252,2263.2,2262.1,0.82026378]
[1750590096040,0.8252,2263.0,2262.1,0.82026378]
[1750590096242,0.8252,2262.9,2262.2,0.55]
[1750590096750,0.8252,2262.9,2262.1,0.82026378]
[1750590096961,0.8252,2262.9,2262.2,0.55]
[1750590098663,0.8252,2262.9,2262.1,0.82026378]
[1750590098664,0.8252,2262.7,2262.1,0.36902993]
[1750590098845,0.88045037,2262.6,2262.1,0.36902993]
[1750590099031,0.88045037,2262.6,2261.7,10.0]
[1750590099453,0.88045037,2262.6,2261.6,6.68656815]
[1750590099779,0.8252,2262.4,2261.7,10.0]
[1750590099963,0.8252,2262.4,2261.8,0.55]
[1750590100362,1.09412,2262.4,2261.8,0.55]
[1750590100574,0.8252,2262.3,2261.7,0.55]
[1750590100735,0.8252,2262.3,2261.7,10.0]
[1750590100941,0.7793,2262.1,2261.6,6.23612688]
[1750590101173,0.7793,2261.9,2261.2,0.55]
[1750590101337,2.6423,2261.9,2261.1,0.1284187]
[1750590101533,1.863,2261.9,2261.1,0.1284187]
[1750590101782,0.7793,2261.8,2261.1,0.1284187]
[1750590102137,0.7793,2261.8,2261.1,0.57032604]
[1750590102491,0.7793,2261.8,2261.2,0.55]
[1750590105253,0.7793,2262.0,2261.2,0.55]
[1750590106137,0.7793,2262.0,2261.4,0.55]
[1750590107276,1.863,2262.3,2261.4,0.55]
[1750590107481,0.8032,2262.2,2261.4,0.55]
[1750590108967,0.8032,2262.1,2261.2,12.413]
[1750590112642,0.8032,2262.1,2261.2,10.0]
[1750590112952,0.7542,2261.9,2261.2,10.0]
[1750590113160,0.7542,2261.9,2261.3,0.55]
[1750590114409,0.7542,2261.9,2261.1,0.57440679]
[1750590114754,0.7542,2261.7,2261.2,0.55]
[1750590116150,0.7866,2261.6,2261.2,0.55]
[1750590120192,0.7866,2261.6,2261.1,0.57440679]
[1750590120344,0.7866,2261.6,2261.1,0.1284187]
[1750590121501,0.7866,2261.4,2261.1,0.1284187]
[1750590123369,2.50299609,2262.0,2261.1,0.1284187]